bitfinex/quotes_ETHUSD_20240716
["timestamp","ask_amount","ask_price","bid_price","bid_amount"]
[1721138652367,2.94434,3396.4,3395.3,2.3524]
[1721138652578,2.94465,3396.0,3395.3,2.3524]
[1721138652881,3.0,3396.8,3395.3,2.3524]
[1721138653175,2.94491,3395.7,3395.3,2.3524]
[1721138653399,6.04803,3396.7,3395.3,2.3524]
[1721138653400,2.94451,3396.2,3395.3,2.3524]
[1721138653603,2.94509,3395.5,3394.5,2.4089]
[1721138653801,2.94584,3394.7,3394.5,2.4089]
[1721138653976,2.94609,3394.4,3393.2,2.4295]
[1721138654147,2.94609,3394.4,3393.2,2.96718]
[1721138654148,2.94636,3394.1,3393.2,2.96718]
[1721138654347,9.61147,3395.1,3393.2,2.4295]
[1721138654348,2.94615,3394.3,3393.2,2.4295]
[1721138654613,3.0,3394.7,3393.2,2.4295]
[1721138654614,2.94695,3393.4,3393.2,2.4295]
[1721138654763,2.94698,3393.3,3392.5,2.4511]
[1721138655175,2.94709,3393.2,3392.5,2.4511]
[1721138655487,2.9465,3393.9,3392.5,2.4511]
[1721138655488,2.94724,3393.0,3392.5,2.4511]
[1721138655715,6.666,3393.4,3392.4,0.1479347]
[1721138655873,2.94767,3392.5,3392.4,0.1479347]
[1721138656389,5.89534,3392.5,3392.4,0.1479347]
[1721138657358,2.94822,3391.9,3388.8,1.5]
[1721138657659,2.94822,3391.9,3388.2,1.5]
[1721138657660,19.96852,3389.1,3387.5,2.2694]
[1721138658015,19.96852,3389.1,3387.3,2.2694]
[1721138658016,1.65033165,3389.1,3387.3,2.2694]
[1721138658156,1.65033165,3389.1,3386.4,0.0126774]
[1721138658157,0.03990509,3389.1,3388.5,2.2694]
[1721138658511,4.46260717,3391.1,3388.5,2.2694]
[1721138658512,2.94952,3390.4,3388.8,2.95087]
[1721138658658,2.94973,3390.2,3389.0,0.45781517]
[1721138658858,6.12923,3390.8,3389.0,0.1479347]
[1721138659161,6.92672642,3390.8,3389.0,0.1479347]
[1721138659372,3.18,3390.8,3389.0,0.1479347]
[1721138659595,3.0,3391.5,3389.8,2.95002]
[1721138659596,5.94856,3391.5,3389.8,2.95002]
[1721138659797,5.94856,3391.5,3389.6,2.2789]
[1721138659798,0.03990509,3391.4,3390.0,2.94981]
[1721138659960,0.03990509,3391.4,3390.1,0.294981]
[1721138660304,0.03990509,3391.4,3389.6,2.2789]
[1721138660487,2.94881,3391.2,3389.6,2.2789]
[1721138660687,0.03990509,3391.4,3390.0,2.94983]
[1721138660890,0.03990509,3391.4,3390.1,0.55]
[1721138661058,0.03990509,3391.4,3390.4,2.94947]
[1721138661272,0.03990509,3391.4,3390.1,0.55]
[1721138661273,0.03990509,3391.4,3390.7,2.338]
[1721138661506,2.94895,3391.1,3390.7,2.338]
[1721138661663,2.94949,3390.5,3389.3,2.338]
[1721138661866,0.03989473,3390.5,3389.3,2.338]
[1721138662516,0.03989473,3390.5,3389.6,2.95019]
[1721138662686,0.03989473,3390.5,3389.3,2.338]
[1721138663094,3.0,3391.8,3390.1,2.94973]
[1721138663294,3.18,3392.1,3390.3,2.94958]
[1721138663461,3.18,3392.1,3390.2,2.3657]
[1721138663662,1.18569278,3393.0,3391.1,2.94885]
[1721138663663,2.94742,3392.8,3391.1,2.94885]
[1721138663862,2.88569278,3393.0,3390.9,2.94906]
[1721138664165,1.18569278,3393.0,3391.1,2.94885]
[1721138664409,2.94748,3392.8,3391.2,0.55]
[1721138664699,2.94787,3392.3,3391.2,0.55]
[1721138665197,2.94769,3392.5,3391.2,0.55]
[1721138665412,2.88569278,3393.0,3391.1,0.55]
[1721138665413,1.18569278,3393.0,3391.1,0.55]
[1721138665706,1.18569278,3393.0,3391.8,2.3059]
[1721138666009,1.7,3394.1,3391.8,2.3059]
[1721138666010,1.7,3394.1,3391.9,0.55]
[1721138666326,2.94714,3393.2,3391.9,0.55]
[1721138666611,2.94697,3393.4,3392.0,2.94803]
[1721138666823,2.94697,3393.4,3392.1,0.55]
[1721138666976,2.97,3393.6,3391.8,2.3059]
[1721138667177,2.97,3393.6,3391.9,0.55]
[1721138667501,2.94731,3393.0,3391.9,0.55]
[1721138667677,2.94709,3393.2,3391.9,1.130434]
[1721138668095,2.97,3393.6,3392.1,2.948]
[1721138668266,2.94665,3393.7,3392.1,2.948]
[1721138668267,2.94665,3393.7,3392.3,2.94784]
[1721138668571,3.18,3393.8,3392.7,2.94747]
[1721138668773,3.18,3393.8,3392.8,0.55]
[1721138668967,6.12662,3393.8,3392.8,0.55]
[1721138669166,2.94705,3393.3,3391.5,3.0]
[1721138669364,2.94705,3393.3,3392.0,2.94809]
[1721138669563,3.18,3393.8,3391.9,0.55]
[1721138669564,2.94666,3393.7,3392.1,0.55]
[1721138669773,2.94666,3393.7,3391.9,0.55]
[1721138669774,3.18,3393.8,3391.9,0.55]
[1721138669973,2.94725,3393.0,3391.8,2.3059]
[1721138670209,6.05064,3393.7,3391.8,2.3059]
[1721138670210,2.94708,3393.2,3391.8,2.3059]
[1721138670630,3.0,3393.7,3391.9,0.05894996]
[1721138670789,2.94602,3394.5,3393.0,2.3681]
[1721138671132,4.13146278,3394.7,3393.0,5.31533]
[1721138671133,2.94612,3394.3,3393.0,5.31533]
[1721138671417,2.9459,3394.6,3393.2,2.94706]
[1721138671837,2.9459,3394.6,3393.3,3.49698]
[1721138672133,3.18,3395.0,3393.4,0.349698]
[1721138672277,3.18,3395.0,3393.0,6.9721]
[1721138672278,3.18,3395.0,3393.7,2.94655]
[1721138672621,3.18,3395.0,3393.9,2.94637]
[1721138672786,3.18,3395.0,3394.0,3.49634]
[1721138672996,0.46224041,3395.8,3394.1,2.94627]
[1721138673178,0.46224041,3395.8,3394.5,2.4241]
[1721138673179,2.94498,3395.6,3394.5,2.4241]
[1721138673533,2.94514,3395.5,3394.5,2.4241]
[1721138673693,2.94493,3395.7,3394.5,2.4241]
[1721138673878,2.94483,3395.8,3394.6,0.55]
[1721138674080,2.94493,3395.7,3394.6,0.55]
[1721138674278,2.94473,3395.9,3394.6,0.55]
[1721138674526,6.12455,3396.1,3394.6,3.49578]
[1721138674713,3.18,3396.1,3394.8,2.94566]
[1721138674911,3.18,3396.1,3394.9,0.55]
[1721138675226,3.18,3396.1,3395.0,2.9455]
[1721138675427,3.18,3396.1,3394.9,0.55]
[1721138675428,3.18,3396.1,3395.1,0.55]
[1721138675628,3.18,3396.1,3394.9,0.55]
[1721138675938,3.18,3396.1,3395.1,2.9454]
[1721138676132,2.9442,3396.5,3395.2,3.49533]
[1721138676435,0.46208605,3397.1,3395.3,2.4241]
[1721138676436,2.94377,3397.0,3395.3,2.4241]
[1721138676731,2.94377,3397.0,3395.4,0.55]
[1721138676898,3.18,3397.4,3395.4,0.55]
[1721138676899,2.94361,3397.2,3395.4,0.55]
[1721138677104,2.94388,3396.9,3395.7,2.94489]
[1721138677306,2.94371,3397.1,3395.8,3.49473]
[1721138677526,3.18,3397.4,3396.2,2.94445]
[1721138677725,3.18,3397.4,3396.4,2.33]
[1721138677893,6.12345,3397.4,3396.4,2.33]
[1721138678099,2.94368,3397.1,3396.4,2.33]
[1721138678344,2.94402,3396.8,3395.8,0.55]
[1721138678634,2.94402,3396.8,3395.6,2.33]
[1721138678635,2.94414,3396.6,3395.7,0.55]
[1721138678792,1.7,3396.8,3394.0,2.33]
[1721138678997,1.5,3397.3,3394.0,2.33]
[1721138678998,2.94526,3395.3,3394.0,2.33]
[1721138679299,2.94593,3394.6,3394.0,2.33]
[1721138679714,2.94598,3394.5,3394.0,2.33]
[1721138680348,2.94581,3394.7,3394.0,2.33]
[1721138680547,3.0,3395.7,3394.0,2.33]
[1721138680756,3.562,3396.0,3394.1,0.05891611]
[1721138680757,2.94526,3395.3,3394.1,0.05891611]
[1721138680973,3.0,3395.6,3394.0,2.33]
[1721138680974,2.94535,3395.2,3394.0,2.33]
[1721138681252,3.0,3396.1,3394.0,2.33]
[1721138681403,2.94528,3395.3,3394.1,2.9462]
[1721138681607,2.94464,3396.0,3394.0,2.33]
[1721138681608,3.562,3396.0,3394.0,2.33]
[1721138681840,5.94475,3395.9,3394.4,2.94601]
[1721138682050,3.18,3396.3,3394.7,2.94576]
[1721138682051,2.94471,3396.0,3394.7,2.94576]
[1721138682345,2.94447,3396.2,3394.8,0.55]
[1721138682648,2.94451,3396.2,3394.8,0.55]
[1721138682807,2.94462,3396.1,3394.7,2.94575]
[1721138683007,6.12439,3396.3,3394.3,2.94605]
[1721138683008,2.94496,3395.7,3394.3,2.94605]
[1721138683210,2.94472,3395.9,3394.6,2.94582]
[1721138683652,2.94506,3395.6,3394.0,2.563]
[1721138683825,2.94506,3395.6,3394.4,2.94601]
[1721138684009,2.94508,3395.5,3394.0,2.33]
[1721138684210,2.94474,3395.9,3394.2,2.94612]
[1721138684558,2.94475,3395.9,3394.6,2.94584]
[1721138684843,2.94481,3395.8,3394.6,2.94584]
[1721138685210,2.94492,3395.7,3394.7,2.3252]
[1721138685408,2.94492,3395.7,3394.8,0.55]
[1721138685628,2.94448,3396.2,3394.8,0.55]
[1721138685835,3.18,3396.3,3394.8,0.55]
[1721138685836,2.94456,3396.1,3394.8,0.55]
[1721138686018,3.18,3396.3,3394.8,0.55]
[1721138686220,6.12438,3396.3,3395.0,2.94544]
[1721138686433,3.18,3396.3,3395.1,0.55]
[1721138686648,3.18,3396.3,3394.7,2.3252]
[1721138686649,2.94497,3395.7,3394.7,2.3252]
[1721138686809,0.06365246,3396.2,3394.7,2.3252]
[1721138686810,2.945,3395.6,3394.7,2.3252]
[1721138687012,2.94526,3395.3,3394.7,2.3252]
[1721138687272,2.94511,3395.5,3394.7,2.3252]
[1721138687472,0.06365246,3395.6,3394.7,2.3252]
[1721138687769,2.94533,3395.2,3394.7,2.3252]
[1721138688070,2.9456,3394.9,3394.7,2.3252]
[1721138688555,2.94542,3395.1,3394.7,2.3252]
[1721138688712,3.00868246,3395.6,3394.7,2.3252]
[1721138688713,0.06365246,3395.6,3394.8,0.05891409]
[1721138688907,0.06365246,3395.6,3394.7,2.3252]
[1721138689124,2.94507,3395.5,3394.7,2.3252]
[1721138689342,0.06365246,3395.6,3394.7,2.3252]
[1721138689560,3.00863246,3395.6,3394.7,2.3252]
[1721138689713,0.06365246,3395.6,3394.8,0.55]
[1721138689917,3.00865246,3395.6,3394.8,0.55]
[1721138690121,0.06365246,3395.6,3394.8,0.55]
[1721138691073,0.06365246,3395.6,3394.8,3.49566]
[1721138691363,0.06365246,3395.6,3395.0,2.94548]
[1721138691581,2.94414,3396.6,3395.1,0.55]
[1721138691733,2.94435,3396.4,3395.1,2.94541]
[1721138692063,3.562,3397.7,3395.2,2.4959]
[1721138692064,2.94478,3395.9,3395.2,2.4959]
[1721138692301,2.94478,3395.9,3395.3,0.55]
[1721138692573,2.94482,3395.8,3395.3,0.55]
[1721138692725,2.94499,3395.6,3395.2,2.4959]
[1721138693331,2.94482,3395.8,3395.2,2.4959]
[1721138693636,1.7,3396.8,3395.2,2.4959]
[1721138693637,3.0,3396.9,3395.2,2.4959]
[1721138693838,2.94458,3396.1,3395.2,2.4959]
[1721138694051,2.94438,3396.3,3395.3,0.55]
[1721138694459,2.94438,3396.3,3395.2,2.4959]
[1721138694460,3.0,3397.0,3395.2,2.4959]
[1721138694629,3.0,3397.0,3395.3,0.55]
[1721138694630,2.94416,3396.6,3395.3,0.55]
[1721138694843,2.94429,3396.4,3395.3,0.55]
[1721138695344,2.94446,3396.2,3395.3,0.55]
[1721138695548,2.94471,3396.0,3395.3,0.55]
[1721138695867,2.94471,3396.0,3395.2,2.4959]
[1721138695868,2.94524,3395.3,3395.2,2.4959]
[1721138696037,2.94441,3396.3,3394.0,2.2667]
[1721138696038,2.94549,3395.1,3394.0,2.2667]
[1721138696240,2.94553,3395.0,3394.0,2.2667]
[1721138696474,6.50677,3395.9,3394.0,2.2667]
[1721138696475,2.94596,3394.5,3394.0,2.2667]
[1721138696683,2.94619,3394.3,3394.0,2.2667]
[1721138696941,4.64488,3395.8,3394.0,2.2667]
[1721138696942,2.94628,3394.1,3394.0,2.2667]
[1721138697164,2.94641,3394.0,3392.8,5.21405]
[1721138697377,2.94641,3394.0,3391.2,3.562]
[1721138697378,2.94748,3392.8,3391.6,2.2667]
[1721138697579,3.104,3393.9,3391.7,2.94834]
[1721138697580,2.94717,3393.1,3391.7,2.94834]
[1721138697841,3.0,3393.9,3391.9,2.94812]
[1721138698095,2.94707,3393.2,3392.0,2.9481]
[1721138698392,2.94729,3393.0,3391.6,2.788242]
[1721138698883,2.98206971,3393.8,3392.1,2.94797]
[1721138698884,2.94681,3393.5,3392.1,2.94797]
[1721138699094,0.03549971,3393.8,3392.2,3.30162664]
[1721138699095,2.94663,3393.7,3392.2,3.30162664]
[1721138699298,0.03549971,3393.8,3392.2,3.30162664]
[1721138699299,0.03549971,3393.8,3392.4,2.94772]
[1721138699587,2.94671,3393.7,3392.4,2.94772]
[1721138699895,0.03552258,3393.6,3392.5,0.55]
[1721138700049,0.03552258,3393.6,3392.3,2.3168]
[1721138700050,0.03552258,3393.6,3392.4,0.55]
[1721138700405,0.03552258,3393.6,3392.4,0.8661597]
[1721138700550,0.03552258,3393.6,3392.5,2.94762]
[1721138700748,0.03552258,3393.6,3391.8,2.94825]
[1721138700749,2.94723,3393.1,3392.6,2.3168]
[1721138701003,2.9475,3392.7,3392.6,2.3168]
[1721138701271,2.9475,3392.7,3391.7,2.3168]
[1721138701272,2.94768,3392.5,3391.7,2.3168]
[1721138701704,2.94762,3392.6,3391.7,2.3168]
[1721138702190,2.94721,3393.1,3391.7,2.54848]
[1721138702390,2.94734,3392.9,3391.7,2.54848]
[1721138702704,2.94699,3393.3,3392.0,2.94809]
[1721138702886,2.94699,3393.3,3391.7,2.54848]
[1721138702887,0.03552258,3393.6,3391.7,3.33568]
[1721138703198,0.03552258,3393.6,3392.7,2.94749]
[1721138703403,0.03552258,3393.6,3392.9,2.94731]
[1721138703559,2.94566,3394.9,3393.0,0.55]
[1721138703560,2.94604,3394.4,3393.0,0.55]
[1721138703754,2.94602,3394.4,3393.3,2.3554]
[1721138703985,2.94548,3395.1,3393.4,0.55]
[1721138703986,2.94614,3394.3,3393.4,0.55]
[1721138704196,2.94593,3394.6,3393.4,0.55]
[1721138704407,3.104,3395.0,3393.4,1.135239]
[1721138704696,2.94654,3393.9,3393.3,2.3554]
[1721138705051,2.94503,3395.6,3393.3,2.3554]
[1721138705255,2.94568,3394.8,3393.4,0.55]
[1721138705491,2.94607,3394.4,3393.5,0.58524]
[1721138705789,2.94607,3394.4,3393.6,0.55]
[1721138706013,2.94553,3395.0,3393.6,0.55]
[1721138706014,2.94568,3394.8,3393.6,0.55]
[1721138706232,2.94552,3395.0,3393.5,0.55]
[1721138706404,2.94552,3395.0,3393.3,5.3023]
[1721138706405,3.562,3395.7,3393.4,0.55]
[1721138706603,2.94622,3394.2,3393.4,0.55]
[1721138706795,2.94622,3394.2,3393.5,0.29054]
[1721138706994,2.94577,3394.7,3393.6,0.55]
[1721138707357,3.0,3395.6,3393.7,2.4497]
[1721138707510,2.94464,3396.0,3393.8,0.55]
[1721138707511,2.94584,3394.7,3393.8,0.55]
[1721138707896,2.946,3394.5,3393.8,0.55]
[1721138708215,2.94592,3394.6,3393.7,2.4497]
[1721138708422,2.94653,3393.9,3393.7,2.4497]
[1721138708599,2.94653,3393.9,3392.4,2.94776]
[1721138708600,2.94708,3393.2,3392.9,2.286]
[1721138708957,2.94697,3393.4,3392.9,2.5146]
[1721138709257,6.05031,3394.1,3391.5,2.286]
[1721138709401,2.9476,3392.6,3391.5,2.286]
[1721138709737,2.9476,3392.6,3391.5,5.23448]
[1721138709911,2.9476,3392.6,3391.5,5.23453]
[1721138710439,2.9481,3392.1,3391.5,2.286]
[1721138710665,2.94834,3391.8,3391.5,2.286]
[1721138710937,2.94839,3391.7,3390.9,2.2543]
[1721138711148,2.94781,3392.4,3390.9,2.2543]
[1721138711149,2.94872,3391.4,3390.9,2.2543]
[1721138711438,2.94881,3391.2,3390.9,2.2543]
[1721138711750,3.0,3392.3,3390.9,2.2543]
[1721138711903,2.9482,3391.9,3391.0,0.05897353]
[1721138712102,0.60582914,3392.6,3391.0,0.05897353]
[1721138712103,2.94803,3392.1,3391.0,0.23132735]
[1721138712304,2.94813,3392.0,3391.0,0.23132735]
[1721138712647,2.94793,3392.3,3391.0,0.23132735]
[1721138712948,2.94872,3391.3,3390.9,2.2543]
[1721138713099,2.94864,3391.4,3390.9,2.2543]
[1721138713305,2.9488,3391.2,3390.9,2.2543]
[1721138713500,6.05226,3391.9,3389.4,2.95035]
[1721138713726,2.94921,3390.8,3389.6,2.95013]
[1721138713923,2.94921,3390.8,3389.5,0.295035]
[1721138713924,2.94924,3390.7,3389.5,0.295035]
[1721138714126,2.94924,3390.7,3389.1,2.3547]
[1721138714127,2.94945,3390.5,3389.4,2.95031]
[1721138714323,2.94888,3391.2,3389.1,2.3547]
[1721138714324,2.94968,3390.2,3389.5,0.005]
[1721138714563,3.104,3391.4,3389.5,0.005]
[1721138714564,6.05306,3391.0,3389.5,0.005]
[1721138714718,2.94994,3389.9,3389.5,0.005]
[1721138715650,3.562,3390.9,3389.5,0.005]
[1721138715651,2.94976,3390.2,3389.5,0.005]
[1721138715860,2.94941,3390.6,3389.5,0.005]
[1721138716065,2.94987,3390.0,3389.5,0.005]
[1721138716371,2.94947,3390.5,3389.5,0.005]
[1721138716518,6.104,3391.3,3389.5,0.005]
[1721138716519,2.94957,3390.4,3389.5,0.005]
[1721138716920,2.94961,3390.3,3389.5,0.005]
[1721138717124,2.94984,3390.1,3389.5,0.005]
[1721138717530,3.0,3391.3,3389.5,0.005]
[1721138717531,2.95006,3389.8,3389.5,0.005]
[1721138717766,9.61511,3390.9,3389.5,0.005]
[1721138717767,2.94987,3390.0,3389.5,0.005]
[1721138718053,6.51111,3390.9,3389.5,0.005]
[1721138718054,3.562,3390.9,3389.5,0.005]
[1721138718371,5.9004,3389.6,3389.5,0.005]
[1721138719833,11.8008,3389.6,3389.5,0.005]
[1721138720036,17.751,3389.6,3389.5,0.005]
[1721138720264,14.90652,3389.1,3389.0,0.1479347]
[1721138720465,17.85715,3389.1,3389.0,0.1479347]
[1721138720662,3.0,3389.5,3387.0,2.4492]
[1721138720663,2.9521,3387.5,3387.0,2.4492]
[1721138720980,2.95107,3388.6,3387.0,2.4492]
[1721138720981,2.95228,3387.3,3387.0,2.4492]
[1721138721156,2.95228,3387.3,3385.6,3.1015847]
[1721138721157,2.95224,3387.3,3385.6,3.1015847]
[1721138721364,2.95168,3387.9,3385.7,2.4492]
[1721138721365,2.95216,3387.4,3385.7,2.4492]
[1721138721523,6.562,3388.0,3385.7,5.40277]
[1721138721524,2.95225,3387.3,3385.7,5.40277]
[1721138721720,2.95215,3387.4,3385.8,2.2528]
[1721138721924,2.95215,3387.4,3385.7,6.05757]
[1721138721925,2.9522,3387.3,3386.1,2.95322]
[1721138722161,3.0,3388.4,3386.0,2.2528]
[1721138722162,2.95236,3387.2,3386.0,2.2528]
[1721138722382,2.95267,3386.8,3386.0,2.2528]
[1721138722549,2.9523,3387.2,3386.0,2.2528]
[1721138722864,2.95236,3387.2,3386.0,2.2528]
[1721138723079,2.95088,3388.9,3386.1,3.624628]
[1721138723223,0.30307884,3389.1,3386.1,0.520628]
[1721138723224,2.4027,3388.4,3386.1,0.520628]
[1721138723586,2.4027,3388.4,3385.6,0.1479347]
[1721138723588,1.7,3387.8,3385.6,0.1479347]
[1721138723872,2.9524,3387.1,3385.6,0.1479347]
[1721138724167,2.95325,3386.1,3385.6,0.1479347]
[1721138724354,4.7,3387.8,3385.6,0.1351347]
[1721138724355,6.562,3387.3,3385.6,0.1351347]
[1721138724668,5.90718,3385.7,3385.6,0.1351347]
[1721138724880,2.95351,3385.8,3385.6,0.1351347]
[1721138725164,0.43883322,3387.3,3385.6,0.1351347]
[1721138725165,2.95318,3386.2,3385.6,0.1351347]
[1721138725538,2.95299,3386.4,3385.7,2.4606]
[1721138725743,3.562,3387.9,3385.8,0.25957347]
[1721138725961,0.30224298,3388.8,3385.8,0.25957347]
[1721138725962,3.562,3388.6,3386.3,2.4851]
[1721138726128,2.95291,3386.5,3386.3,2.4851]
[1721138726326,1.5,3388.6,3385.6,0.1351347]
[1721138726327,2.95359,3385.7,3385.6,2.6202347]
[1721138726583,3.562,3387.4,3385.6,2.6202347]
[1721138726728,1.80240127,3388.4,3385.7,3.21558347]
[1721138726729,2.95151,3388.1,3385.7,3.21558347]
[1721138726932,0.30240127,3388.4,3385.8,2.3336]
[1721138726933,2.95253,3387.0,3385.8,2.3336]
[1721138727130,0.30240127,3388.4,3385.8,2.3336]
[1721138727131,2.9524,3387.1,3385.8,2.3336]
[1721138727330,2.95169,3387.9,3386.2,2.95313]
[1721138727567,3.562,3388.6,3386.0,2.95331]
[1721138727568,2.95195,3387.6,3386.0,2.95331]
[1721138727728,2.95195,3387.6,3385.7,0.26202347]
[1721138727729,2.95178,3387.8,3386.4,2.3336]
[1721138727931,2.95141,3388.3,3386.6,2.9528]
[1721138728160,3.562,3389.2,3386.8,2.95262]
[1721138728161,2.95143,3388.2,3386.8,2.95262]
[1721138728480,2.9515,3388.1,3386.9,3.50254]
[1721138728763,2.9515,3388.1,3386.9,0.55]
[1721138728976,2.95143,3388.2,3387.0,0.28836]
[1721138729185,2.95109,3388.6,3387.1,0.55]
[1721138729322,2.95077,3389.0,3387.1,0.55]
[1721138729528,2.95101,3388.7,3387.0,0.28836]
[1721138729766,2.95101,3388.7,3386.8,2.3336]
[1721138729767,2.95171,3387.9,3386.8,2.3336]
[1721138730001,2.95067,3389.1,3386.8,2.3336]
[1721138730002,2.95131,3388.4,3386.9,0.78336]
[1721138730128,3.562,3389.2,3386.9,0.78336]
[1721138730328,2.9514,3388.3,3386.8,2.3336]
[1721138730527,2.9524,3387.1,3386.8,2.3336]
[1721138730775,2.95137,3388.3,3386.8,2.3336]
[1721138730776,2.95255,3386.9,3386.8,2.3336]
[1721138730924,2.95299,3386.4,3385.8,2.3]
[1721138731124,2.95316,3386.2,3385.8,2.3]
[1721138731776,0.04826086,3386.1,3385.8,2.3]
[1721138731933,2.95342,3385.9,3385.8,2.3]
[1721138732136,5.90684,3385.9,3385.8,2.3]
[1721138732338,2.95264,3386.8,3385.6,0.1351347]
[1721138732339,5.90718,3385.7,3385.6,0.1351347]
[1721138732878,8.90588486,3385.7,3385.6,0.1351347]
[1721138733093,5.95229486,3385.7,3385.6,0.1351347]
[1721138733458,5.98100094,3385.7,3385.6,0.1351347]
[1721138733641,0.07382094,3385.7,3385.6,0.1351347]
[1721138734076,0.02870608,3385.7,3385.6,0.1351347]
[1721138734599,2.95301,3386.4,3385.6,2.75612217]
[1721138734758,2.95284,3386.6,3385.6,2.75612217]
[1721138734961,2.95178,3387.8,3385.6,2.75612217]
[1721138734962,0.04471475,3386.3,3385.6,0.1351347]
[1721138735157,2.95253,3387.0,3385.7,2.3121]
[1721138735373,1.7,3387.8,3385.7,2.3121]
[1721138735672,2.95324,3386.2,3385.7,2.3121]
[1721138735845,0.04471475,3386.1,3385.7,2.3121]
[1721138736046,6.05668,3386.8,3385.7,2.3121]
[1721138736244,2.95337,3386.0,3385.7,2.3121]
[1721138736478,3.562,3387.3,3385.6,0.1351347]
[1721138736479,1.7,3387.2,3385.6,0.1351347]
[1721138736690,1.7,3386.8,3385.6,0.1351347]
[1721138736896,2.95359,3385.7,3385.6,0.1351347]
[1721138737045,5.90718,3385.7,3385.6,0.1351347]
[1721138737384,5.95189475,3385.7,3385.6,0.1351347]
[1721138737976,8.86287,3384.9,3384.8,0.0509166]
[1721138738213,5.90858,3384.9,3384.8,0.0509166]
[1721138738367,2.99898422,3384.9,3384.8,0.0509166]
[1721138738565,5.95327422,3384.9,3384.8,0.0509166]
[1721138738790,2.99898422,3384.9,3384.8,0.0509166]
[1721138739064,0.04469422,3384.9,3384.8,0.0509166]
[1721138739308,2.95403,3385.2,3384.8,0.0509166]
[1721138739515,3.562,3386.3,3384.8,0.0509166]
[1721138739659,1.7,3387.2,3384.8,0.0509166]
[1721138739660,0.04469422,3385.1,3384.8,0.0509166]
[1721138739860,2.95327,3386.1,3384.9,2.9058]
[1721138740130,0.04456759,3386.0,3385.0,0.29567166]
[1721138740331,0.04456759,3386.0,3385.1,3.50411]
[1721138740481,2.95308,3386.3,3385.1,3.50411]
[1721138740824,0.04456759,3386.2,3385.1,0.55]
[1721138740980,0.04456759,3386.2,3385.6,2.95366]
[1721138741185,2.9523,3387.2,3385.8,2.2698]
[1721138741486,2.95181,3387.8,3385.9,0.55]
[1721138741487,2.99694759,3387.1,3385.9,0.55]
[1721138741931,0.04456759,3387.1,3385.9,0.55]
[1721138742433,2.95198,3387.6,3386.3,2.95304]
[1721138742638,1.17260459,3388.3,3386.4,2.8198]
[1721138742934,2.95266,3386.8,3386.4,2.2698]
[1721138743283,2.95266,3386.8,3385.3,2.95393]
[1721138743284,2.95231,3387.2,3385.1,2.31]
[1721138743485,3.104,3387.5,3385.2,0.26056717]
[1721138743486,2.95315,3386.3,3385.2,0.26056717]
[1721138743685,6.05614,3387.4,3385.1,2.31]
[1721138743686,2.95332,3386.1,3385.1,2.31]
[1721138743929,0.04456759,3386.0,3385.1,2.31]
[1721138744427,2.99792759,3386.0,3385.1,2.31]
[1721138744586,0.04456759,3386.0,3385.1,2.31]
[1721138745085,2.9536,3385.7,3385.1,2.31]
[1721138745286,0.04480365,3385.6,3385.1,2.31]
[1721138745486,2.95326,3386.1,3385.1,2.31]
[1721138745687,0.02861888,3386.2,3385.1,5.79562066]
[1721138746090,2.98177888,3386.2,3385.1,2.84152066]
[1721138746432,0.04473012,3386.1,3385.2,0.05906623]
[1721138746587,0.04473012,3386.1,3385.3,0.55]
[1721138746783,2.99799012,3386.1,3385.1,2.31]
[1721138747102,2.99799012,3386.1,3385.2,0.55]
[1721138747299,2.95346,3385.9,3385.1,2.31]
[1721138747487,0.04473012,3386.1,3385.1,2.31]
[1721138747488,2.9537,3385.6,3385.1,2.31]
[1721138747983,2.95395,3385.3,3384.8,0.0509166]
[1721138748188,0.04473012,3385.5,3384.8,0.0509166]
[1721138748189,2.99851012,3385.5,3384.8,0.0509166]
[1721138748383,0.02874387,3386.0,3384.8,0.0509166]
[1721138748384,2.95344,3385.9,3384.8,0.0509166]
[1721138748588,5.90858,3384.9,3384.8,0.0509166]
[1721138748820,5.93737893,3384.9,3384.8,0.0509166]
[1721138749294,3.02781905,3384.9,3384.8,0.0509166]
[1721138750210,0.07352905,3384.9,3384.8,0.0509166]
[1721138750405,0.04473012,3384.9,3384.8,2.5375166]
[1721138750652,0.04473012,3384.9,3384.8,2.79126826]
[1721138750966,2.95352,3385.8,3384.8,2.79126826]
[1721138750967,2.95377,3385.5,3384.8,2.79126826]
[1721138751121,2.9532,3386.2,3384.8,2.5375166]
[1721138751122,0.04455049,3384.9,3384.8,2.5375166]
[1721138751468,2.95289,3386.6,3384.8,3.0875166]
[1721138751749,2.95317,3386.2,3384.9,3.50425]
[1721138751910,0.07964725,3386.5,3384.9,3.50425]
[1721138751911,2.95336,3386.0,3384.9,0.55]
[1721138752118,2.95336,3386.0,3384.9,3.50427]
[1721138752119,2.9534,3386.0,3384.9,3.50427]
[1721138752346,0.04455049,3385.9,3385.0,0.60417866]
[1721138752664,0.04455049,3385.9,3385.1,0.55]
[1721138752951,0.03509676,3386.1,3385.2,0.05906877]
[1721138753109,0.04455049,3385.8,3385.3,0.55]
[1721138753313,0.04455049,3385.8,3385.1,0.55]
[1721138753314,0.03509676,3386.1,3385.1,3.50406]
[1721138753645,2.95334,3386.0,3385.0,0.60417866]
[1721138753956,0.04455049,3385.9,3385.1,0.55]